fUSD/lending_fUSD_20260611
["ID","MTS","AMOUNT","RATE_DAILY","PERIOD"]
[424793251,1781167832000,-150.0,0.00014149,2]
[424793253,1781167832000,-6535.81,0.0001415,2]
[424793256,1781167832000,-199.5,0.0001416,2]
[424793259,1781167832000,-166.66,0.00014378,2]
[424793255,1781167832000,-1208.86,0.00014156,2]
[424793262,1781167832000,-1852.42,0.00014542,2]
[424793260,1781167832000,-250.0,0.00014378,2]
[424793261,1781167832000,-59297.89,0.00014471,2]
[424793249,1781167832000,-1500.0,0.0001414,2]
[424793257,1781167832000,-2953.57,0.00014207,2]
[424793263,1781167832000,-151.0,0.0001463,2]
[424793264,1781167832000,-166.66,0.00014668,2]
[424793266,1781167832000,-1555.5,0.00014688,2]
[424793271,1781167832000,-156.28,0.00014914,2]
[424793269,1781167832000,-202.9,0.00014829,2]
[424793265,1781167832000,-168.90688265,0.00014678,2]
[424793267,1781167832000,-200.0,0.00014733,2]
[424793258,1781167832000,-232.168188,0.00014284,2]
[424793242,1781167832000,-166.66,0.00013797,2]
[424793221,1781167832000,-4000.0,0.00010057,2]
[424793241,1781167832000,-200.0,0.00013699,2]
[424793213,1781167832000,-150.99,9.599e-05,2]
[424793214,1781167832000,-214.0,0.0001,2]
[424793216,1781167832000,-214.06796553,0.0001,2]
[424793215,1781167832000,-214.0,0.0001,2]
[424793218,1781167832000,-259.65586608,0.0001,2]
[424793217,1781167832000,-299.99,0.0001,2]
[424793219,1781167832000,-250.0,0.00010057,2]
[424793220,1781167832000,-250.0,0.00010057,2]
[424793222,1781167832000,-250.0,0.00010057,2]
[424793238,1781167832000,-539.71180244,0.00013698,2]
[424793225,1781167832000,-340.9710952,0.00011061,2]
[424793224,1781167832000,-300.0,0.00010057,2]
[424793227,1781167832000,-1208.86,0.00011325,2]
[424793229,1781167832000,-151.0,0.00012605,2]
[424793226,1781167832000,-340.9710952,0.00011173,2]
[424793228,1781167832000,-195.95,0.00012501,2]
[424793230,1781167832000,-151.0,0.00012605,2]
[424793231,1781167832000,-1208.86,0.0001274,2]
[424793236,1781167832000,-500.0,0.00013698,2]
[424793233,1781167832000,-500.0,0.00013698,2]
[424793223,1781167832000,-500.0,0.00010057,2]
[424793268,1781167832000,-165.78,0.00014829,2]
[424793289,1781167832000,-1672.7364795,0.00015784,2]
[424793273,1781167832000,-1612.00566397,0.00015,2]
[424793301,1781167832000,-303.8,0.00016438,2]
[424793303,1781167832000,-151.0,0.00016481,2]
[424793308,1781167832000,-1865.36488656,0.00017428,2]
[424793306,1781167832000,-1208.86,0.00016987,2]
[424793309,1781167832000,-1438.46782042,0.00017976,2]
[424793304,1781167832000,-500.0,0.00016685,2]
[424793302,1781167832000,-283.348021,0.00016438,2]
[424793305,1781167832000,-1798.80895522,0.0001688,2]
[424793307,1781167832000,-156.28,0.00017375,2]
[424793300,1781167832000,-80.25968173,0.00016344,2]
[424793310,1781167832000,-495.91556694,0.00017976,2]
[424793313,1781167832000,-167.30116669,0.000182,2]
[424793312,1781167832000,-167.30116669,0.00018,2]
[424793314,1781167832000,-6677.83293374,0.00018356,2]
[424793315,1781167832000,-483.20706626,0.00018356,2]
[424793317,1781167832000,-2005.9555727,0.00018524,2]
[424793316,1781167832000,-303.8,0.0001841,2]
[424793318,1781167832000,-2187.3118,0.00018572,2]
[424793319,1781167832000,-565.27343881,0.00018973,2]
[424793272,1781167832000,-166.66,0.00014959,2]
[424793311,1781167832000,-350.0,0.00018,2]
[424793298,1781167832000,-207.79187897,0.00016344,2]
[424793299,1781167832000,-1311.9484393,0.00016344,2]
[424793297,1781167832000,-85.12545927,0.00016332,2]
[424793274,1781167832000,-215.95576085,0.00015019,2]
[424793281,1781167832000,-1141.43463149,0.000153,2]
[424793280,1781167832000,-1424.50237252,0.0001527,2]
[424793278,1781167832000,-1613.0535,0.00015236,2]
[424793276,1781167832000,-240.16283291,0.00015209,2]
[424793277,1781167832000,-1600.0,0.00015229,2]
[424793279,1781167832000,-166.66,0.00015249,2]
[424793282,1781167832000,-470.57103248,0.000153,2]
[424793296,1781167832000,-829.98709775,0.00016332,2]
[424793283,1781167832000,-2190.11,0.00015419,2]
[424793285,1781167832000,-471.96,0.00015542,2]
[424793275,1781167832000,-1612.00566397,0.000152,2]
[424793291,1781167832000,-1600.0,0.00015972,2]
[424793286,1781167832000,-1208.86,0.00015571,2]
[424793288,1781167832000,-1600.0,0.00015601,2]
[424793292,1781167832000,-300.0,0.00016,2]
[424793290,1781167832000,-1078.26,0.00015866,2]
[424793287,1781167832000,-1612.00566397,0.000156,2]
[424793293,1781167832000,-197.4,0.00016,2]
[424793294,1781167832000,-156.28,0.00016144,2]
[424793284,1781167832000,-1612.00566397,0.000155,2]
[424793295,1781167832000,-819.51517222,0.00016332,2]
[424793324,1781167833000,-931.70372915,0.00018973,2]
[424793323,1781167833000,-1602.42724703,0.00018973,2]
[424793325,1781167833000,-1114.81839901,0.00018973,2]
[424793320,1781167833000,-271.17317545,0.00018973,2]
[424793321,1781167833000,-575.75,0.00018973,2]
[424793322,1781167833000,-328.07007432,0.00018973,2]
[424793327,1781167833000,-1096.86532736,0.00018973,2]
[424793326,1781167833000,-530.57794545,0.00018973,2]
[424793330,1781167833000,-200.0,0.00019072,2]
[424793334,1781167833000,-151.0,0.00019072,2]
[424793333,1781167833000,-151.0,0.00019072,2]
[424793335,1781167833000,-68.89821133,0.00019072,2]
[424793328,1781167833000,-3572.73435817,0.00018973,2]
[424793329,1781167833000,-176.47,0.00019018,2]
[424793331,1781167833000,-151.0,0.00019072,2]
[424793332,1781167833000,-151.0,0.00019072,2]
[424793371,1781167838000,-151.0,0.00019072,2]
[424793377,1781167838000,-151.0,0.00019072,2]
[424793372,1781167838000,-151.0,0.00019072,2]
[424793370,1781167838000,-500.0,0.00019072,2]
[424793387,1781167838000,-151.0,0.00019072,2]
[424793378,1781167838000,-500.0,0.00019072,2]
[424793380,1781167838000,-500.0,0.00019072,2]
[424793379,1781167838000,-151.0,0.00019072,2]
[424793386,1781167838000,-151.0,0.00019072,2]
[424793382,1781167838000,-500.0,0.00019072,2]
[424793385,1781167838000,-151.0,0.00019072,2]
[424793381,1781167838000,-151.0,0.00019072,2]
[424793384,1781167838000,-151.0,0.00019072,2]
[424793374,1781167838000,-151.0,0.00019072,2]
[424793389,1781167838000,-151.0,0.00019072,2]
[424793393,1781167838000,-151.0,0.00019199,2]
[424793392,1781167838000,-249.0,0.0001916,2]
[424793390,1781167838000,-277.56322829,0.00019094,2]
[424793391,1781167838000,-500.0,0.00019099,2]
[424793395,1781167838000,-762.45,0.00019338,2]
[424793388,1781167838000,-151.0,0.00019072,2]
[424793394,1781167838000,-170.74865144,0.00019242,2]
[424793383,1781167838000,-151.0,0.00019072,2]
[424793373,1781167838000,-500.0,0.00019072,2]
[424793366,1781167838000,-151.0,0.00019072,2]
[424793368,1781167838000,-151.0,0.00019072,2]
[424793397,1781167838000,-200.0,0.000195,7]
[424793348,1781167838000,-2011.27771756,0.00019072,2]
[424793347,1781167838000,-205.56089398,0.0001463,2]
[424793349,1781167838000,-151.0,0.00019072,2]
[424793350,1781167838000,-500.0,0.00019072,2]
[424793351,1781167838000,-151.0,0.00019072,2]
[424793353,1781167838000,-151.0,0.00019072,2]
[424793357,1781167838000,-151.0,0.00019072,2]
[424793352,1781167838000,-500.0,0.00019072,2]
[424793355,1781167838000,-500.0,0.00019072,2]
[424793369,1781167838000,-151.0,0.00019072,2]
[424793354,1781167838000,-151.0,0.00019072,2]
[424793365,1781167838000,-113.13659019,0.00019072,2]
[424793364,1781167838000,-37.86340981,0.00019072,2]
[424793359,1781167838000,-155.00116678,0.00019072,2]
[424793362,1781167838000,-237.87340981,0.00019072,2]
[424793360,1781167838000,-151.0,0.00019072,2]
[424793363,1781167838000,-262.12659019,0.00019072,2]
[424793361,1781167838000,-151.0,0.00019072,2]
[424793367,1781167838000,-500.0,0.00019072,2]
[424793376,1781167838000,-151.0,0.00019072,2]
[424793375,1781167838000,-151.0,0.00019072,2]
[424793358,1781167838000,-344.99883322,0.00019072,2]
[424793396,1781167838000,-100000.0,0.00019339,7]
[424793356,1781167838000,-151.0,0.00019072,2]
[424793398,1781167838000,-400.0,0.000196,7]
[424793426,1781167838000,-500.0,0.00019898,2]
[424793428,1781167838000,-500.0,0.00019898,2]
[424793429,1781167838000,-500.0,0.00019898,2]
[424793430,1781167838000,-500.0,0.00019898,2]
[424793438,1781167838000,-500.0,0.00019898,2]
[424793435,1781167838000,-376.41088447,0.00019898,2]
[424793431,1781167838000,-500.0,0.00019898,2]
[424793432,1781167838000,-500.0,0.00019898,2]
[424793440,1781167838000,-500.0,0.00019898,2]
[424793439,1781167838000,-264.64621115,0.00019898,2]
[424793425,1781167838000,-500.0,0.00019898,2]
[424793441,1781167838000,-500.0,0.00019898,2]
[424793436,1781167838000,-500.0,0.00019898,2]
[424793437,1781167838000,-347.40235177,0.00019898,2]
[424793444,1781167838000,-500.0,0.00019898,2]
[424793445,1781167838000,-500.0,0.00019898,2]
[424793447,1781167838000,-187.16166216,0.00019898,2]
[424793443,1781167838000,-500.0,0.00019898,2]
[424793442,1781167838000,-500.0,0.00019898,2]
[424793448,1781167838000,-451.95470719,0.00019898,2]
[424793446,1781167838000,-500.0,0.00019898,2]
[424793399,1781167838000,-200.0,0.0001962,2]
[424793433,1781167838000,-424.00972381,0.00019898,2]
[424793420,1781167838000,-500.0,0.00019898,2]
[424793434,1781167838000,-500.0,0.00019898,2]
[424793424,1781167838000,-500.0,0.00019898,2]
[424793423,1781167838000,-500.0,0.00019898,2]
[424793401,1781167838000,-600.0,0.000197,7]
[424793402,1781167838000,-3024.22645255,0.00019798,2]
[424793406,1781167838000,-336.88575778,0.00019799,2]
[424793405,1781167838000,-1595.43235961,0.00019799,2]
[424793403,1781167838000,-1145.7364696,0.00019799,2]
[424793404,1781167838000,-171.48663566,0.00019799,2]
[424793408,1781167838000,-800.0,0.000198,7]
[424793407,1781167838000,-2674.94849488,0.00019799,2]
[424793409,1781167838000,-2252.0,0.00019863,2]
[424793411,1781167838000,-151.0,0.00019896,2]
[424793412,1781167838000,-151.0,0.00019896,2]
[424793400,1781167838000,-2157.14243826,0.0001962,2]
[424793417,1781167838000,-500.0,0.00019898,2]
[424793410,1781167838000,-237.87125706,0.00019889,2]
[424793418,1781167838000,-500.0,0.00019898,2]
[424793414,1781167838000,-500.0,0.00019898,2]
[424793419,1781167838000,-500.0,0.00019898,2]
[424793416,1781167838000,-627.20312376,0.00019898,2]
[424793415,1781167838000,-500.0,0.00019898,2]
[424793421,1781167838000,-500.0,0.00019898,2]
[424793427,1781167838000,-500.0,0.00019898,2]
[424793422,1781167838000,-389.60551311,0.00019898,2]
[424793413,1781167838000,-151.0,0.00019896,2]
[424793480,1781167839000,-1274.0,0.00020069,2]
[424793488,1781167839000,-150.234,0.00020069,2]
[424793485,1781167839000,-200.0,0.00020069,2]
[424793482,1781167839000,-150.0,0.00020069,2]
[424793484,1781167839000,-200.0,0.00020069,2]
[424793483,1781167839000,-150.0,0.00020069,2]
[424793477,1781167839000,-4449.0,0.0002,2]
[424793481,1781167839000,-382.0,0.00020069,2]
[424793478,1781167839000,-3562.941,0.00020069,2]
[424793487,1781167839000,-150.185,0.00020069,2]
[424793479,1781167839000,-1376.72,0.00020069,2]
[424793486,1781167839000,-419.0,0.00020069,2]
[424793493,1781167839000,-200.0,0.00020168,2]
[424793491,1781167839000,-1124.99999999,0.00020099,2]
[424793495,1781167839000,-661.72841598,0.000202,2]
[424793494,1781167839000,-2236.95670847,0.00020168,2]
[424793490,1781167839000,-150.103,0.00020069,2]
[424793492,1781167839000,-300.0,0.000201,10]
[424793497,1781167839000,-303.8,0.00020381,2]
[424793507,1781167839000,-209.40437684,0.0002065,2]
[424793498,1781167839000,-661.72841598,0.000204,2]
[424793496,1781167839000,-200.0,0.00020246,2]
[424793500,1781167839000,-1030.0,0.0002065,2]
[424793489,1781167839000,-957.614,0.00020069,2]
[424793475,1781167839000,-12942.03,0.0002,2]
[424793451,1781167839000,-160.93281423,0.00019898,2]
[424793476,1781167839000,-297.99,0.0002,2]
[424793499,1781167839000,-661.72841598,0.000206,2]
[424793452,1781167839000,-2500000.0,0.00019899,2]
[424793450,1781167839000,-250.0,0.00019898,7]
[424793449,1781167839000,-2000.0,0.00019898,2]
[424793453,1781167839000,-1500000.0,0.00019899,2]
[424793454,1781167839000,-215.95576085,0.000199,7]
[424793458,1781167839000,-205.0,0.0002,2]
[424793460,1781167839000,-163.0,0.0002,2]
[424793456,1781167839000,-1000.0,0.000199,7]
[424793461,1781167839000,-286.0,0.0002,2]
[424793462,1781167839000,-159.0,0.0002,2]
[424793474,1781167839000,-3685.07,0.0002,2]
[424793455,1781167839000,-491.06,0.000199,2]
[424793463,1781167839000,-400.0,0.0002,2]
[424793465,1781167839000,-313.0,0.0002,2]
[424793464,1781167839000,-661.72841598,0.0002,2]
[424793473,1781167839000,-185.0,0.0002,2]
[424793466,1781167839000,-262.0,0.0002,2]
[424793472,1781167839000,-795.0,0.0002,2]
[424793468,1781167839000,-63538.68,0.0002,2]
[424793467,1781167839000,-200.0,0.0002,10]
[424793470,1781167839000,-1515.0,0.0002,2]
[424793469,1781167839000,-991.0,0.0002,2]
[424793471,1781167839000,-319.0,0.0002,2]
[424793459,1781167839000,-639.0,0.0002,2]
[424793502,1781167839000,-153.80113636,0.0002065,2]
[424793457,1781167839000,-186.0,0.0002,2]
[424793503,1781167839000,-1107.63007,0.0002065,2]
[424793535,1781167839000,-152.0,0.0002065,2]
[424793536,1781167839000,-1712.93078311,0.0002065,2]
[424793533,1781167839000,-1651.81367706,0.0002065,2]
[424793534,1781167839000,-500.0,0.0002065,2]
[424793539,1781167839000,-1776.30922209,0.0002065,2]
[424793540,1781167839000,-500.0,0.0002065,2]
[424793537,1781167839000,-500.0,0.0002065,2]
[424793542,1781167839000,-1842.0326633,0.0002065,2]
[424793541,1781167839000,-152.0,0.0002065,2]
[424793543,1781167839000,-152.0,0.0002065,2]
[424793544,1781167839000,-500.0,0.0002065,2]
[424793538,1781167839000,-152.0,0.0002065,2]
[424793545,1781167839000,-1910.18787185,0.0002065,2]
[424793557,1781167839000,-152.0,0.0002065,2]
[424793549,1781167839000,-1980.8648231,0.0002065,2]
[424793548,1781167839000,-152.0,0.0002065,2]
[424793550,1781167839000,-500.0,0.0002065,2]
[424793547,1781167839000,-500.0,0.0002065,2]
[424793552,1781167839000,-2054.15682156,0.0002065,2]
[424793555,1781167839000,-152.0,0.0002065,2]
[424793553,1781167839000,-500.0,0.0002065,2]
[424793556,1781167839000,-500.0,0.0002065,2]
[424793558,1781167839000,-500.0,0.0002065,2]
[424793501,1781167839000,-1068.11,0.0002065,2]
[424793551,1781167839000,-152.0,0.0002065,2]
[424793530,1781167839000,-333.82409541,0.0002065,2]
[424793554,1781167839000,-152.0,0.0002065,2]
[424793531,1781167839000,-500.0,0.0002065,2]
[424793532,1781167839000,-152.0,0.0002065,2]
[424793506,1781167839000,-246.78306644,0.0002065,2]
[424793504,1781167839000,-578.20924308,0.0002065,2]
[424793508,1781167839000,-1191.11104074,0.0002065,2]
[424793514,1781167839000,-1328.27659266,0.0002065,2]
[424793511,1781167839000,-174.61919141,0.0002065,2]
[424793510,1781167839000,-1235.18214925,0.0002065,2]
[424793512,1781167839000,-1280.88388877,0.0002065,2]
[424793509,1781167839000,-154.12265554,0.0002065,2]
[424793513,1781167839000,-151.0,0.0002065,2]
[424793515,1781167839000,-4853.74383408,0.0002065,2]
[424793517,1781167839000,-209.40437684,0.0002065,2]
[424793505,1781167839000,-1148.61238259,0.0002065,2]
[424793516,1781167839000,-1377.42282658,0.0002065,2]
[424793518,1781167839000,-1428.38747117,0.0002065,2]
[424793523,1781167839000,-151.0,0.0002065,2]
[424793529,1781167839000,-1592.87721992,0.0002065,2]
[424793527,1781167839000,-1536.04360648,0.0002065,2]
[424793522,1781167839000,-151.0,0.0002065,2]
[424793526,1781167839000,-721.12765534,0.0002065,2]
[424793525,1781167839000,-741.39054701,0.0002065,2]
[424793519,1781167839000,-1481.2378076,0.0002065,2]
[424793520,1781167839000,-151.0,0.0002065,2]
[424793521,1781167839000,-209.40437684,0.0002065,2]
[424793528,1781167839000,-152.0,0.0002065,2]
[424793524,1781167839000,-500.0,0.0002065,2]
[424793582,1781167840000,-313.0,0.00021,2]
[424793596,1781167840000,-246.78306644,0.0002109,2]
[424793593,1781167840000,-1387.3418704,0.00021,2]
[424793587,1781167840000,-991.0,0.00021,2]
[424793585,1781167840000,-6111.0,0.00021,2]
[424793588,1781167840000,-1515.0,0.00021,2]
[424793586,1781167840000,-11111.0,0.00021,2]
[424793594,1781167840000,-246.78306644,0.00021035,2]
[424793589,1781167840000,-319.0,0.00021,2]
[424793592,1781167840000,-6111.0,0.00021,2]
[424793599,1781167840000,-246.78306644,0.00021145,2]
[424793591,1781167840000,-15000.0,0.00021,2]
[424793590,1781167840000,-185.0,0.00021,2]
[424793597,1781167840000,-151.0,0.0002109,2]
[424793601,1781167840000,-151.0,0.00021145,2]
[424793598,1781167840000,-1125.0,0.00021103,2]
[424793605,1781167840000,-154.12265554,0.00021198,2]
[424793603,1781167840000,-217.15233878,0.00021198,2]
[424793580,1781167840000,-286.0,0.00021,2]
[424793607,1781167840000,-181.08010149,0.00021198,2]
[424793595,1781167840000,-151.0,0.00021035,2]
[424793574,1781167840000,-246.78306644,0.0002098,2]
[424793566,1781167840000,-3024.22645255,0.00020785,2]
[424793583,1781167840000,-262.0,0.00021,2]
[424793613,1781167840000,-151.0,0.00021198,2]
[424793559,1781167840000,-246.78306644,0.00020705,2]
[424793562,1781167840000,-200.0,0.00020716,2]
[424793560,1781167840000,-151.0,0.00020705,2]
[424793561,1781167840000,-913.87228234,0.00020705,2]
[424793564,1781167840000,-246.78306644,0.0002076,2]
[424793563,1781167840000,-2319.72410669,0.00020716,2]
[424793570,1781167840000,-246.78306644,0.0002087,2]
[424793569,1781167840000,-151.0,0.00020815,2]
[424793568,1781167840000,-246.78306644,0.00020815,2]
[424793571,1781167840000,-151.0,0.0002087,2]
[424793567,1781167840000,-661.72841598,0.000208,2]
[424793565,1781167840000,-151.0,0.0002076,2]
[424793572,1781167840000,-246.78306644,0.00020925,2]
[424793573,1781167840000,-151.0,0.00020925,2]
[424793575,1781167840000,-151.0,0.0002098,2]
[424793581,1781167840000,-159.0,0.00021,2]
[424793578,1781167840000,-639.0,0.00021,2]
[424793577,1781167840000,-205.0,0.00021,2]
[424793579,1781167840000,-163.0,0.00021,2]
[424793576,1781167840000,-186.0,0.00021,2]
[424793584,1781167840000,-15000.0,0.00021,2]
[424793611,1781167840000,-151.0,0.00021198,2]
[424793629,1781167840000,-225.18697532,0.00021746,2]
[424793615,1781167840000,-491.06,0.000212,2]
[424793649,1781167840000,-319.0,0.00022,2]
[424793645,1781167840000,-313.0,0.00022,2]
[424793650,1781167840000,-185.0,0.00022,2]
[424793646,1781167840000,-262.0,0.00022,2]
[424793651,1781167840000,-153.80113636,0.00022019,2]
[424793654,1781167840000,-1125.0,0.00022159,2]
[424793653,1781167840000,-2504.78,0.00022087,2]
[424793652,1781167840000,-205.831642,0.00022019,2]
[424793656,1781167840000,-1145.73646957,0.00022214,2]
[424793655,1781167840000,-176.47,0.00022188,2]
[424793657,1781167840000,-154.12265554,0.00022294,2]
[424793659,1781167840000,-233.5188934,0.00022294,2]
[424793658,1781167840000,-194.72792766,0.00022294,2]
[424793661,1781167840000,-151.0,0.00022294,2]
[424793660,1781167840000,-151.0,0.00022294,2]
[424793664,1781167840000,-2586.85809042,0.0002236,2]
[424793662,1781167840000,-303.8,0.00022353,2]
[424793663,1781167840000,-283.34429458,0.0002236,2]
[424793609,1781167840000,-217.15233878,0.00021198,2]
[424793665,1781167840000,-2000.0,0.00022462,2]
[424793667,1781167840000,-76784.35385514,0.00022562,7]
[424793647,1781167840000,-991.0,0.00022,2]
[424793648,1781167840000,-1515.0,0.00022,2]
[424793666,1781167840000,-1438.05,0.00022466,2]
[424793642,1781167840000,-286.0,0.00022,2]
[424793644,1781167840000,-450.0,0.00022,2]
[424793619,1781167840000,-151.0,0.000212,2]
[424793621,1781167840000,-200.0,0.00021264,2]
[424793623,1781167840000,-2405.55389863,0.00021264,2]
[424793631,1781167840000,-151.0,0.00021746,2]
[424793628,1781167840000,-187.78006524,0.00021746,2]
[424793625,1781167840000,-336.88575774,0.00021575,2]
[424793632,1781167840000,-3024.22645255,0.00021771,2]
[424793627,1781167840000,-154.12265554,0.00021746,2]
[424793630,1781167840000,-151.0,0.00021746,2]
[424793617,1781167840000,-246.78306657,0.000212,2]
[424793634,1781167840000,-2494.55939288,0.00021812,2]
[424793626,1781167840000,-317.7572987,0.00021746,2]
[424793640,1781167840000,-639.0,0.00022,2]
[424793643,1781167840000,-159.0,0.00022,2]
[424793639,1781167840000,-205.0,0.00022,2]
[424793641,1781167840000,-163.0,0.00022,2]
[424793636,1781167840000,-2027.81431365,0.00022,2]
[424793635,1781167840000,-5000.0,0.00021918,2]
[424793637,1781167840000,-205.0,0.00022,2]
[424793633,1781167840000,-200.0,0.00021812,2]
[424793638,1781167840000,-186.0,0.00022,2]
[424793699,1781167841000,-991.0,0.00023,2]
[424793692,1781167841000,-639.0,0.00023,2]
[424793694,1781167841000,-286.0,0.00023,2]
[424793695,1781167841000,-159.0,0.00023,2]
[424793697,1781167841000,-262.0,0.00023,2]
[424793696,1781167841000,-313.0,0.00023,2]
[424793698,1781167841000,-491.06,0.00023,7]
[424793690,1781167841000,-186.0,0.00023,2]
[424793704,1781167841000,-1358.0,0.00023069,2]
[424793700,1781167841000,-1515.0,0.00023,2]
[424793701,1781167841000,-319.0,0.00023,2]
[424793703,1781167841000,-3556.0,0.00023069,2]
[424793705,1781167841000,-1274.0,0.00023069,2]
[424793716,1781167841000,-747.80937859,0.00023389,2]
[424793714,1781167841000,-599.60298507,0.00023389,2]
[424793715,1781167841000,-151.0,0.00023389,2]
[424793706,1781167841000,-382.0,0.00023069,2]
[424793688,1781167841000,-2682.57183977,0.00022908,2]
[424793702,1781167841000,-185.0,0.00023,2]
[424793689,1781167841000,-205.0,0.00023,2]
[424793678,1781167841000,-481.2441364,0.00019898,2]
[424793687,1781167841000,-151.0,0.00022842,2]
[424793669,1781167841000,-762.45,0.00019898,2]
[424793668,1781167841000,-151.0,0.00019799,2]
[424793670,1781167841000,-90.04022127,0.00019898,2]
[424793671,1781167841000,-465.29519956,0.00019898,2]
[424793674,1781167841000,-580.61352032,0.00019898,2]
[424793673,1781167841000,-207.11457917,0.00019898,2]
[424793675,1781167841000,-181.83647968,0.00019898,2]
[424793711,1781167841000,-1048.0,0.00023208,7]
[424793691,1781167841000,-205.0,0.00023,2]
[424793679,1781167841000,-762.45,0.00019898,2]
[424793676,1781167841000,-762.45,0.00019898,2]
[424793680,1781167841000,-762.45,0.00019898,2]
[424793683,1781167841000,-154.12265554,0.00022842,2]
[424793693,1781167841000,-163.0,0.00023,2]
[424793682,1781167841000,-3024.22645255,0.00022758,2]
[424793685,1781167841000,-242.15909246,0.00022842,2]
[424793686,1781167841000,-151.0,0.00022842,2]
[424793684,1781167841000,-201.93286098,0.00022842,2]
[424793677,1781167841000,-281.2058636,0.00019898,2]
[424793707,1781167841000,-150.0,0.00023069,2]
[424793681,1781167841000,-23215.64614486,0.00022562,7]
[424793710,1781167841000,-933.0,0.00023069,2]
[424793738,1781167841000,-262.0,0.00024,2]
[424793733,1781167841000,-163.0,0.00024,2]
[424793739,1781167841000,-991.0,0.00024,2]
[424793740,1781167841000,-1515.0,0.00024,2]
[424793742,1781167841000,-185.0,0.00024,2]
[424793741,1781167841000,-319.0,0.00024,2]
[424793743,1781167841000,-2884.75459676,0.00024004,2]
[424793744,1781167841000,-298.5,0.0002416,2]
[424793748,1781167841000,-151.0,0.00024486,2]
[424793746,1781167841000,-154.12265554,0.00024486,2]
[424793745,1781167841000,-303.8,0.00024324,2]
[424793750,1781167841000,-1145.73646957,0.00024629,2]
[424793749,1781167841000,-2991.49051684,0.00024552,2]
[424793752,1781167841000,-1000.0,0.00024658,2]
[424793751,1781167841000,-170.46,0.00024658,2]
[424793754,1781167841000,-238.0,0.00024809,5]
[424793755,1781167841000,-373.0,0.00024809,5]
[424793753,1781167841000,-3024.22645255,0.00024731,2]
[424793709,1781167841000,-419.0,0.00023069,2]
[424793735,1781167841000,-159.0,0.00024,2]
[424793736,1781167841000,-500.0,0.00024,2]
[424793747,1781167841000,-225.18697532,0.00024486,2]
[424793734,1781167841000,-286.0,0.00024,2]
[424793737,1781167841000,-313.0,0.00024,2]
[424793708,1781167841000,-150.0,0.00023069,2]
[424793712,1781167841000,-336.88575774,0.0002335,2]
[424793713,1781167841000,-153.80113636,0.00023388,2]
[424793717,1781167841000,-154.12265554,0.0002339,2]
[424793721,1781167841000,-151.0,0.0002339,2]
[424793719,1781167841000,-251.11897888,0.0002339,2]
[424793720,1781167841000,-151.0,0.0002339,2]
[424793723,1781167841000,-719.25351747,0.00023616,2]
[424793718,1781167841000,-209.40437684,0.0002339,2]
[424793728,1781167841000,-151.0,0.00023938,2]
[424793726,1781167841000,-217.15233878,0.00023938,2]
[424793724,1781167841000,-3024.22645255,0.00023744,2]
[424793722,1781167841000,-2781.82699784,0.00023456,2]
[424793727,1781167841000,-321.05156947,0.00023938,2]
[424793730,1781167841000,-186.0,0.00024,2]
[424793731,1781167841000,-205.0,0.00024,2]
[424793729,1781167841000,-250.76960971,0.00023938,2]
[424793725,1781167841000,-154.12265554,0.00023938,2]